fUST/lending_fUST_20251102
["ID","MTS","AMOUNT","RATE_DAILY","PERIOD"]
[392870720,1762094120568,162.380719,0.0003778,60]
[392870721,1762094121191,168.3888056,0.0003778,60]
[392870722,1762094121801,174.61919141,0.0003778,60]
[392870723,1762094122416,181.08010149,0.0003778,60]
[392870724,1762094123040,187.78006525,0.0003778,60]
[392870725,1762094123647,194.72792766,0.0003778,60]
[392870726,1762094124269,201.93286099,0.0003778,60]
[392870727,1762094124872,209.40437684,0.0003778,60]
[392870728,1762094125493,217.15233878,0.0003778,60]
[392870729,1762094126118,225.18697532,0.0003778,60]
[392870730,1762094126732,233.51889341,0.0003778,60]
[392870731,1762094127355,242.15909246,0.0003778,60]
[392870732,1762094127987,242.15909246,0.0003778,60]
[392870734,1762094182886,-25.65343165,0.00020667,2]
[392870735,1762094183090,-242.05813212,0.00020808,2]
[392870759,1762094423453,-287.18315416,0.00020854,2]
[392870760,1762094423477,-51.58410048,0.000209,2]
[392870761,1762094425001,-258.04901649,0.000209,2]
[392870762,1762094427765,10000.0,0.00032877,120]
[392870763,1762094433913,-190.36688303,0.000209,2]
[392870764,1762094435301,-252.24341404,0.00020989,2]
[392870765,1762094440557,5000.0,0.00032877,120]
[392870766,1762094441012,-179.46144458,0.00020989,2]
[392870767,1762094445209,-104.06868802,0.00020989,2]
[392870768,1762094445233,-127.22174009,0.00020989,2]
[392870769,1762094447997,-250.20644793,0.00020989,2]
[392870770,1762094449240,-122.57181198,0.00020989,2]
[392870771,1762094449378,-500.0,0.00020989,2]
[392870772,1762094450661,-210.32924885,0.00021234,2]
[392870773,1762094453324,-310.15078932,0.00021234,2]
[392870774,1762094464580,-455.66252544,0.00021234,2]
[392870775,1762094480040,-183.671,0.00021256,2]
[392870777,1762094495503,-901.58638077,0.00021494,2]
[392870779,1762094523488,672.509051,0.00013699,2]
[392870780,1762094523709,672.509051,0.00020187,2]
[392870781,1762094526683,160.0,0.00021547,2]
[392870782,1762094532561,-1200.0,0.00021572,2]
[392870783,1762094532592,-300.0,0.00021572,2]
[392870785,1762094549674,161.367236,0.00020749,2]
[392870787,1762094549920,161.367236,0.00020749,9]
[392870788,1762094550131,161.367236,0.00020749,17]
[392870789,1762094550341,161.367236,0.00020749,25]
[392870790,1762094550553,161.367236,0.00020749,33]
[392870791,1762094550755,161.367236,0.00020749,41]
[392870792,1762094550995,161.367236,0.00020749,49]
[392870793,1762094551328,161.367236,0.00020749,57]
[392870794,1762094551368,161.367236,0.00020749,64]
[392870795,1762094551586,161.367236,0.00020749,72]
[392870796,1762094551788,161.367236,0.00020749,80]
[392870797,1762094551991,161.367236,0.00020749,88]
[392870798,1762094552226,161.367236,0.00020749,96]
[392870799,1762094552534,161.367236,0.00020749,104]
[392870800,1762094552724,161.367236,0.00020749,112]
[392870801,1762094552947,161.367236,0.00020749,120]
[392870802,1762094561718,1200.0,0.00021572,2]
[392870804,1762094577941,500.0,0.00020989,2]
[392870805,1762094583328,300.0,0.00021572,2]
[392870814,1762094663676,150.0,0.00019484,2]
[392870815,1762094664101,150.0,0.00020412,2]
[392870816,1762094664537,150.0,0.0002134,2]
[392870817,1762094667535,294.97767337,0.00037795,60]
[392870822,1762094702678,300.0,0.00021572,2]
[392870823,1762094705127,930.87251712,0.00021478,2]
[392870824,1762094706270,194.5303871,0.00037795,60]
[392870825,1762094712683,1200.0,0.00021572,2]
[392870829,1762094722439,151.0,0.00037795,60]
[392870833,1762094723067,156.587,0.00037795,60]
[392870834,1762094723860,162.380719,0.00037795,60]
[392870835,1762094724481,168.3888056,0.00037795,60]
[392870836,1762094730370,174.61919141,0.00037795,60]
[392870837,1762094731023,181.08010149,0.00037795,60]
[392870838,1762094731652,187.78006525,0.00037795,60]
[392870839,1762094732290,194.72792766,0.00037795,60]
[392870840,1762094732942,201.93286099,0.00037795,60]
[392870841,1762094733585,209.40437684,0.00037795,60]
[392870842,1762094734209,217.15233878,0.00037795,60]
[392870843,1762094734883,225.18697532,0.00037795,60]
[392870844,1762094735521,233.51889341,0.00037795,60]
[392870845,1762094736125,242.15909246,0.00037795,60]
[392870846,1762094736810,251.11897888,0.00037795,60]
[392870847,1762094737460,260.4103811,0.00037795,60]
[392870848,1762094738101,270.0455652,0.00037795,60]
[392870849,1762094738464,999.0,0.00032876,120]
[392870850,1762094738944,280.03725112,0.00037795,60]
[392870851,1762094738977,150.0,0.00019487,2]
[392870852,1762094739366,150.0,0.00020415,2]
[392870853,1762094739572,290.39862941,0.00037795,60]
[392870854,1762094739768,150.0,0.00021343,2]
[392870855,1762094740192,290.39862941,0.00037795,60]
[392870858,1762094812734,150.0,0.00019366,2]
[392870859,1762094813149,150.0,0.00020288,2]
[392870860,1762094813611,150.0,0.0002121,2]
[392870861,1762094821375,500.0,0.00021572,2]
[392870862,1762094821406,500.0,0.00021572,2]
[392870863,1762094821447,614.22396037,0.00021572,2]
[392870864,1762094822643,500.0,0.00021572,2]
[392870866,1762094824327,607.9946858,0.00021572,2]
[392870867,1762094824699,500.0,0.00021572,2]
[392870868,1762094824733,500.0,0.00021572,2]
[392870869,1762094824765,12.81712871,0.00021572,2]
[392870870,1762094824791,487.18287129,0.00021572,2]
[392870871,1762094824831,500.0,0.00021572,2]
[392870872,1762094824865,500.0,0.00021572,2]
[392870873,1762094824902,500.0,0.00021572,2]
[392870874,1762094824936,500.0,0.00021572,2]
[392870875,1762094824965,500.0,0.00021572,2]
[392870876,1762094824996,500.0,0.00021572,2]
[392870877,1762094825029,500.0,0.00021572,2]
[392870878,1762094825060,500.0,0.00021572,2]
[392870879,1762094825093,500.0,0.00021572,2]
[392870880,1762094825124,449.21505624,0.00021572,2]
[392870881,1762094825156,492.0126711,0.00021572,2]
[392870882,1762094825186,500.0,0.00021572,2]
[392870883,1762094825216,500.0,0.00021572,2]
[392870884,1762094825252,500.0,0.00021572,2]
[392870885,1762094825286,500.0,0.00021572,2]
[392870886,1762094825318,500.0,0.00021572,2]
[392870887,1762094825349,500.0,0.00021572,2]
[392870888,1762094825383,409.31985868,0.00021572,2]
[392870889,1762094825413,500.0,0.00021572,2]
[392870890,1762094825459,162.27954269,0.00021572,2]
[392870891,1762094825487,337.72045731,0.00021572,2]
[392870892,1762094825519,500.0,0.00021572,2]
[392870893,1762094825553,500.0,0.00021572,2]
[392870894,1762094825587,500.0,0.00021572,2]
[392870895,1762094825620,500.0,0.00021572,2]
[392870896,1762094825653,500.0,0.00021572,2]
[392870897,1762094825687,288.97090279,0.00021572,2]
[392870898,1762094825717,500.0,0.00021572,2]
[392870899,1762094825752,500.0,0.00021572,2]
[392870900,1762094825830,500.0,0.00021572,2]
[392870902,1762094834428,500.0,0.00021572,2]
[392870903,1762094861288,198.0,0.00021572,2]
[392870906,1762094886723,150.0,0.00019277,2]
[392870907,1762094887151,150.0,0.00020195,2]
[392870908,1762094887490,500.0,0.000215,2]
[392870909,1762094887565,150.0,0.00021113,2]
[392870911,1762094904391,500.0,0.000215,2]
[392870913,1762094914211,643.2189892,0.00021572,2]
[392870914,1762094919291,482.1912548,0.00037796,60]
[392870915,1762094921674,500.0,0.000215,2]
[392870916,1762094939599,500.0,0.000215,2]
[392870917,1762094939823,3379.04069603,0.00021529,2]
[392870918,1762094957542,150.0,0.00019312,2]
[392870919,1762094958015,150.0,0.00020232,2]
[392870920,1762094958211,500.0,0.000215,2]
[392870921,1762094958440,150.0,0.00021152,2]
[392870922,1762094964223,500.0,0.00021572,2]
[392870924,1762094993729,2227.75031477,0.00021489,2]
[392870925,1762094993754,474.05280251,0.00021489,2]
[392870926,1762094995686,2701.80311726,0.00021499,2]
[392870927,1762094997683,2701.80311726,0.00021509,2]
[392870928,1762094999683,2701.80311726,0.00021519,2]
[392870929,1762095001804,1420.54784571,0.00021529,2]
[392870930,1762095001833,1281.25527155,0.00021529,2]
[392870931,1762095012736,1200.0,0.00021572,2]
[392870932,1762095013347,976.14256361,0.00021424,2]
[392870935,1762095022696,151.0,0.00037796,60]
[392870936,1762095023355,156.587,0.00037796,60]
[392870937,1762095024033,162.380719,0.00037796,60]
[392870938,1762095024810,168.3888056,0.00037796,60]
[392870939,1762095025353,174.61919141,0.00037796,60]
[392870940,1762095025980,181.08010149,0.00037796,60]
[392870941,1762095026632,187.78006525,0.00037796,60]
[392870942,1762095027255,194.72792766,0.00037796,60]
[392870943,1762095027894,201.93286099,0.00037796,60]
[392870944,1762095028468,209.40437684,0.00037796,60]
[392870945,1762095029113,217.15233878,0.00037796,60]
[392870946,1762095029753,225.18697532,0.00037796,60]
[392870947,1762095030379,233.51889341,0.00037796,60]
[392870948,1762095030996,242.15909246,0.00037796,60]
[392870949,1762095031630,251.11897888,0.00037796,60]
[392870974,1762095032591,-150.0,0.00019229,2]
[392870976,1762095032600,-150.0,0.00020145,2]
[392870978,1762095032610,-150.0,0.0002106,2]
[392870980,1762095032619,-512.13862,0.00021573,2]
[392870981,1762095032628,-500.0,0.00021573,2]
[392870984,1762095032641,-565.85584861,0.00021573,2]
[392870985,1762095032651,-287.67949108,0.00021573,2]
[392870988,1762095032661,-151.0,0.00021577,2]
[392870990,1762095032670,-171.40376304,0.00021577,2]
[392870994,1762095032679,-151.0,0.00021577,2]
[392870995,1762095032688,-151.0,0.00021577,2]
[392870998,1762095032699,-151.0,0.00021577,2]
[392871000,1762095032708,-151.0,0.00021577,2]
[392871001,1762095032717,-151.0,0.00021577,2]
[392871003,1762095032727,-151.0,0.00021577,2]
[392871022,1762095032848,-151.0,0.00021577,2]
[392871024,1762095032858,-151.0,0.00021577,2]
[392871026,1762095032868,-151.0,0.00021577,2]
[392871028,1762095032877,-151.0,0.00021577,2]
[392871030,1762095032887,-151.0,0.00021577,2]
[392871032,1762095032896,-151.0,0.00021577,2]
[392871034,1762095032905,-151.0,0.00021577,2]
[392871036,1762095032915,-151.0,0.00021577,2]
[392871038,1762095032924,-256.14351418,0.00021577,2]
[392871040,1762095032933,-50000.0,0.00021577,2]
[392871042,1762095032943,-968.26,0.00021579,10]
[392871044,1762095032952,-806.89,0.00021579,10]
[392871046,1762095032961,-434.36,0.0002158,3]
[392871048,1762095032970,-541.65,0.0002158,3]
[392871050,1762095032979,-270.82,0.0002158,3]
[392871051,1762095032988,-812.5,0.0002158,3]
[392871052,1762095032997,-183.672,0.00021589,2]
[392871054,1762095033007,-459.42283669,0.00021589,2]
[392871056,1762095033016,-58514.8467503,0.00021589,2]
[392871057,1762095033025,-500.0,0.00021589,2]
[392871058,1762095033034,-500.0,0.00021589,2]
[392871059,1762095033043,-500.0,0.00021589,2]
[392871060,1762095033052,-500.0,0.00021589,2]
[392871061,1762095033062,-500.0,0.00021589,2]
[392871062,1762095033071,-160.73474423,0.00021589,2]
[392871063,1762095033081,-434178.8788001,0.0002159,2]
[392871064,1762095033093,-3797.27100423,0.0002159,2]
[392871065,1762095035135,260.4103811,0.00037796,60]
[392871066,1762095035661,270.0455652,0.00037796,60]
[392871067,1762095036288,280.03725112,0.00037796,60]
[392871068,1762095036934,290.39862941,0.00037796,60]
[392871069,1762095037548,290.39862941,0.00037796,60]
[392871107,1762095038501,-132065.78397765,0.0002159,2]
[392871156,1762095040887,-0.01557429,0.0002159,2]
[392871157,1762095040900,-95582.68643372,0.0002159,2]
[392871167,1762095043679,-672.4,0.0002158,10]
[392871168,1762095043688,-7050.71060159,0.0002159,2]
[392871169,1762095043855,-3256.70106538,0.0002159,2]
[392871170,1762095043875,-5638.5,0.0002159,2]
[392871171,1762095043887,-1148.1,0.0002159,2]
[392871188,1762095048664,-2281.35254304,0.0002159,2]
[392871189,1762095048674,-151.0,0.00021629,2]
[392871190,1762095048683,-252.54982802,0.00021629,2]
[392871191,1762095048693,-1000.0,0.00021689,2]
[392871192,1762095048702,-1000.0,0.00021689,2]
[392871193,1762095048711,-1020.96833816,0.00021689,2]
[392871194,1762095048720,-422.16790606,0.00021773,2]
[392871195,1762095048730,-500.0,0.00021773,2]
[392871196,1762095048739,-22520.21285223,0.00021788,2]
[392871197,1762095098432,-150.0,0.00019251,2]
[392871198,1762095098459,-96.58424553,0.00020168,2]
[392871199,1762095112914,-53.41575447,0.00020168,2]
[392871200,1762095112936,-98.67102719,0.0002051,2]
[392871201,1762095142783,-288.45712059,0.0002051,2]
[392871202,1762095142806,-8.90384863,0.00020732,2]
[392871203,1762095189004,-160.02818837,0.00020732,2]
[392871204,1762095189027,-31.20032611,0.00021019,2]
[392871205,1762095194618,-127.12891229,0.00021019,2]
[392871206,1762095194644,-137.9747437,0.00021119,2]
[392871208,1762095217844,-200.0,0.00021119,2]
[392871209,1762095217873,-32.25765712,0.00021119,2]
[392871210,1762095221217,-293.44137627,0.00021119,2]
[392871211,1762095223261,-36.32622291,0.00021119,2]
[392871212,1762095223283,-248.51389446,0.00021119,2]
[392871213,1762095224787,-187.84825579,0.00021119,2]
[392871214,1762095226339,-63.63784975,0.00021119,2]
[392871215,1762095226362,-170.93887101,0.00021119,2]
[392871216,1762095230022,-204.41859723,0.00021119,2]
[392871217,1762095233964,-124.64253176,0.00021119,2]
[392871218,1762095233995,-26.35746824,0.00021119,2]
[392871220,1762095236894,-161.00468201,0.00021119,2]
[392871221,1762095238531,-269.39634705,0.00021119,2]
[392871222,1762095240670,-43.2415027,0.00021119,2]
[392871223,1762095240693,-396.16304198,0.00021119,2]
[392871224,1762095242807,-103.83695802,0.00021119,2]
[392871225,1762095242835,-56.01319729,0.00021119,2]
[392871226,1762095244788,-223.05811855,0.00021119,2]
[392871227,1762095246291,-44.18644624,0.00021119,2]
[392871228,1762095246313,-285.98039789,0.00021119,2]
[392871230,1762095262787,-214.01960211,0.00021119,2]
[392871231,1762095262810,-85.98039789,0.00021119,2]
[392871232,1762095263982,1385.89551171,0.00021019,2]
[392871233,1762095264831,-414.01960211,0.00021119,2]
[392871234,1762095264855,-103.18426738,0.00021119,2]
[392871235,1762095267427,-217.5906973,0.00021119,2]
[392871236,1762095270236,-179.22503532,0.00021119,2]
[392871237,1762095270258,-252.89426738,0.00021119,2]
[392871238,1762095271720,-189.82442573,0.00021119,2]
[392871239,1762095271982,300.0,0.000211,2]
[392871240,1762095273745,-278.18628464,0.00021119,2]
[392871242,1762095283129,300.0,0.000211,2]
[392871243,1762095283885,-221.81371536,0.00021119,2]
[392871244,1762095283914,-500.0,0.00021119,2]
[392871245,1762095283937,-195.41124732,0.00021119,2]
[392871246,1762095286535,-300.0,0.00021119,2]
[392871248,1762095288607,-4.58875268,0.00021119,2]
[392871249,1762095288630,-278.18628464,0.00021119,2]
[392871250,1762095290741,-221.81371536,0.00021119,2]
[392871251,1762095290763,-160.60854871,0.00021119,2]
[392871252,1762095300517,247.30491919,0.0002051,2]
[392871253,1762095301179,-300.0,0.00021119,2]
[392871254,1762095302785,300.0,0.00021118,2]
[392871255,1762095303741,-39.39145129,0.00021119,2]
[392871256,1762095303766,-449.60854871,0.00021119,2]
[392871257,1762095305231,-50.39145129,0.00021119,2]
[392871258,1762095305255,-378.68095783,0.00021119,2]
[392871260,1762095308548,300.0,0.00021118,2]
[392871261,1762095308893,-97.26053435,0.00021119,2]
[392871262,1762095308926,-305.40987228,0.00021119,2]
[392871263,1762095310429,-194.59012772,0.00021119,2]
[392871264,1762095310452,-178.80650368,0.00021119,2]
[392871265,1762095311467,151.0,0.00037761,60]
[392871266,1762095311581,1200.0,0.00021118,2]
[392871267,1762095311935,-162.88488126,0.00021119,2]
[392871268,1762095312122,156.587,0.00037761,60]
[392871269,1762095312835,162.380719,0.00037761,60]
[392871270,1762095313519,168.3888056,0.00037761,60]
[392871271,1762095314138,-158.30861506,0.00021119,2]
[392871272,1762095314162,-54.74590122,0.00021119,2]
[392871273,1762095314228,174.61919141,0.00037761,60]
[392871274,1762095314837,181.08010149,0.00037761,60]
[392871275,1762095315460,187.78006525,0.00037761,60]
[392871276,1762095316098,194.72792766,0.00037761,60]
[392871277,1762095316498,-250.95687087,0.00021119,2]
[392871278,1762095316735,201.93286099,0.00037761,60]
[392871279,1762095318006,209.40437684,0.00037761,60]
[392871280,1762095318660,217.15233878,0.00037761,60]
[392871281,1762095319280,225.18697532,0.00037761,60]
[392871282,1762095319742,-194.29722791,0.00021119,2]
[392871283,1762095319765,-94.75714858,0.00021119,2]
[392871284,1762095319901,233.51889341,0.00037761,60]
[392871285,1762095320511,242.15909246,0.00037761,60]
[392871286,1762095321650,251.11897888,0.00037761,60]
[392871287,1762095322347,260.4103811,0.00037761,60]
[392871288,1762095323105,270.0455652,0.00037761,60]
[392871289,1762095323629,280.03725112,0.00037761,60]
[392871290,1762095324249,280.03725112,0.00037761,60]
[392871291,1762095337893,-184.55838011,0.00021119,2]
[392871292,1762095339497,-290.28872998,0.00021119,2]
[392871293,1762095339521,-42.13211498,0.00021119,2]
[392871294,1762095343798,-345.79647098,0.00021119,2]
[392871295,1762095347786,-112.07141404,0.00021119,2]
[392871296,1762095347810,-205.69914519,0.0002112,2]
[392871297,1762095350464,-198.88309299,0.0002112,2]
[392871298,1762095352011,-257.87578267,0.0002112,2]
[392871299,1762095355256,-515.27835285,0.0002112,2]
[392871300,1762095358698,-233.86663257,0.0002112,2]
[392871301,1762095361526,-314.91106522,0.0002112,2]
[392871303,1762095363200,300.0,0.00021119,2]
[392871304,1762095365888,-269.53814673,0.0002112,2]
[392871307,1762095408935,267.30315431,0.00020981,2]
[392871308,1762095422926,300.0,0.00021119,2]
[392871309,1762095444082,663.56703021,0.0002102,2]
[392871310,1762095462304,489.0,0.00021119,2]
[392871311,1762095482597,300.0,0.00021119,2]
[392871314,1762095513078,552.88238802,0.00021119,2]
[392871315,1762095548192,300.0,0.00021119,2]
[392871325,1762095602881,300.0,0.00021119,2]
[392871326,1762095607507,6527.25742746,0.00020588,2]
[392871327,1762095607536,974.62363194,0.00020588,2]
[392871328,1762095608305,300.0,0.00021119,2]
[392871330,1762095614091,813.10081571,0.000215,3]
[392871331,1762095615676,1200.0,0.00021119,2]
[392871332,1762095617539,931.90992918,0.00021082,2]
[392871334,1762095663351,300.0,0.00021119,2]
[392871335,1762095696788,351.33365385,0.000207,2]
[392871336,1762095699015,1403.92928077,0.000207,2]
[392871337,1762095723334,300.0,0.00021119,2]
[392871339,1762095741244,500.0,0.00021119,2]
[392871341,1762095761910,509.0,0.00021119,2]
[392871342,1762095782476,605.09245813,0.00021013,6]
[392871343,1762095782531,458.26046025,0.00021224,6]
[392871344,1762095783180,300.0,0.00021119,2]
[392871346,1762095796288,1000.0,0.00020548,2]
[392871352,1762095819039,269.6213378,0.00021119,2]
[392871353,1762095832276,253.1681602,0.00021119,2]
[392871354,1762095843117,300.0,0.00021119,2]
[392871355,1762095865179,150.0,0.00020664,2]
[392871357,1762095901388,300.0,0.00021119,2]
[392871358,1762095902871,300.0,0.00021119,2]
[392871360,1762095912490,1200.0,0.00021119,2]
[392871382,1762095955920,500.0,0.00021119,2]
[392871383,1762095962590,300.0,0.00021119,2]
[392871387,1762095999409,3895.3202666,0.000207,2]
[392871389,1762096023221,300.0,0.00021119,2]
[392871390,1762096031455,3681.28982512,0.000215,3]
[392871391,1762096059363,-9536.3299761,0.0002112,2]
[392871392,1762096059494,-10000.01,0.0002112,2]
[392871399,1762096061366,-1532.40219432,0.0002112,2]
[392871400,1762096061417,-6935.20561136,0.0002112,2]
[392871403,1762096061730,-316.0,0.0002112,2]
[392871416,1762096069013,5000.0,0.000215,3]
[392871418,1762096076554,-318.4727354,0.00021128,2]
[392871419,1762096076676,1318.71017488,0.000215,3]
[392871422,1762096084722,5000.0,0.000215,3]
[392871423,1762096087717,500.0,0.00021119,2]
[392871424,1762096087779,500.0,0.00021119,2]
[392871425,1762096087837,500.0,0.00021119,2]
[392871426,1762096087895,500.0,0.00021119,2]
[392871427,1762096087958,500.0,0.00021119,2]
[392871428,1762096088016,500.0,0.00021119,2]
[392871429,1762096088078,500.0,0.00021119,2]
[392871430,1762096088137,500.0,0.00021119,2]
[392871431,1762096088198,500.0,0.00021119,2]
[392871432,1762096088258,500.0,0.00021119,2]
[392871433,1762096088322,500.0,0.00021119,2]
[392871434,1762096088386,500.0,0.00021119,2]
[392871435,1762096088531,500.0,0.00021119,2]
[392871436,1762096088620,500.0,0.00021119,2]
[392871437,1762096088681,500.0,0.00021119,2]
[392871438,1762096088738,500.0,0.00021119,2]
[392871439,1762096088801,500.0,0.00021119,2]
[392871440,1762096088859,500.0,0.00021119,2]
[392871441,1762096088919,363.0645292,0.00021119,2]
[392871443,1762096088980,136.9354708,0.00021119,2]
[392871444,1762096089051,500.0,0.00021119,2]
[392871445,1762096089122,500.0,0.00021119,2]
[392871446,1762096089187,500.0,0.00021119,2]
[392871447,1762096089252,450.0,0.00021119,2]
[392871448,1762096089320,600.0,0.00021119,2]
[392871449,1762096089378,500.0,0.00021119,2]
[392871450,1762096089452,500.0,0.00021119,2]
[392871451,1762096107165,1525.96468363,0.000215,3]
[392871452,1762096108255,500.0,0.00021119,2]
[392871453,1762096108322,500.0,0.00021119,2]
[392871454,1762096108377,500.0,0.00021119,2]
[392871455,1762096108444,500.0,0.00021119,2]
[392871456,1762096108500,500.0,0.00021119,2]
[392871457,1762096108555,500.0,0.00021119,2]
[392871458,1762096108612,500.0,0.00021119,2]
[392871459,1762096108667,500.0,0.00021119,2]
[392871460,1762096108720,500.0,0.00021119,2]
[392871461,1762096108775,500.0,0.00021119,2]
[392871462,1762096108831,180.53495201,0.00021119,2]
[392871463,1762096108884,500.0,0.00021119,2]
[392871464,1762096108947,500.0,0.00021119,2]
[392871465,1762096108999,500.0,0.00021119,2]
[392871466,1762096109057,499.49936475,0.00021119,2]
[392871467,1762096109117,500.0,0.00021119,2]
[392871468,1762096109178,500.0,0.00021119,2]
[392871469,1762096109242,276.84731058,0.00021119,2]
[392871470,1762096114894,5000.0,0.000215,3]
[392871471,1762096123206,150.0,0.00019554,2]
[392871472,1762096130578,3474.03531637,0.000215,3]
[392871473,1762096138773,-257.29924645,0.00021152,2]
[392871475,1762096154361,-332.42084496,0.000212,2]
[392871476,1762096169474,-195.304,0.00021252,2]
[392871477,1762096180009,500.0,0.00021119,2]
[392871478,1762096185202,-1704.12221089,0.00021478,2]
[392871479,1762096200972,173.9509429,0.000207,2]
[392871480,1762096203199,695.10796784,0.000207,2]
[392871481,1762096204803,-931.90992919,0.00021565,2]
[392871482,1762096215838,-1200.0,0.00021571,2]
[392871483,1762096218540,5000.0,0.00021565,2]
[392871484,1762096222340,1283.07765332,0.00021453,2]
[392871485,1762096226345,1316.93234668,0.00021571,2]
[392871486,1762096226402,3683.06765332,0.00021571,2]
[392871487,1762096231223,-500.0,0.00021572,2]
[392871488,1762096231283,-500.0,0.00021572,2]
[392871489,1762096231340,-300.0,0.00021572,2]
[392871490,1762096231409,-300.0,0.00021572,2]
[392871491,1762096231481,-300.0,0.00021572,2]
[392871505,1762096232702,-409.28193176,0.00021573,2]
[392871507,1762096232711,-500.0,0.00021573,2]
[392871509,1762096232720,-512.8113077,0.00021573,2]
[392871511,1762096232729,-249.14094162,0.00021573,2]
[392871512,1762096232739,-576.76209326,0.00021573,2]
[392871514,1762096232748,-500.0,0.00021573,2]
[392871516,1762096232757,-35766.26607817,0.00021573,2]
[392871518,1762096232766,-500.0,0.00021578,2]
[392871519,1762096232775,-800.0,0.00021619,2]
[392871521,1762096232784,-153.02295144,0.00021673,2]
[392871523,1762096232793,-500.0,0.00021699,2]
[392871524,1762096232802,-236.11003666,0.00021699,2]
[392871525,1762096232812,-165.631453,0.000217,2]
[392871526,1762096232821,-591.5954373,0.000217,2]
[392871527,1762096232830,-299.5114505,0.000217,2]
[392871528,1762096232839,-153.0,0.000217,2]
[392871529,1762096232848,-190.7421231,0.000217,2]
[392871530,1762096232857,-299.5114505,0.000217,2]
[392871532,1762096232866,-190.7421231,0.000217,2]
[392871534,1762096232876,-153.0,0.000217,2]
[392871536,1762096232885,-591.5954373,0.000217,2]
[392871537,1762096232896,-190.7421231,0.000217,2]
[392871538,1762096232905,-299.5114505,0.000217,2]
[392871539,1762096232914,-153.0,0.000217,2]
[392871540,1762096232924,-405.81,0.000217,2]
[392871541,1762096232933,-153.02295141,0.00021705,2]
[392871542,1762096232942,-153.02295141,0.00021737,2]
[392871543,1762096232951,-679.23,0.0002175,10]
[392871544,1762096232960,-566.03,0.0002175,10]
[392871545,1762096232969,-500.0,0.00021759,2]
[392871546,1762096232978,-500.0,0.00021759,2]
[392871547,1762096232987,-500.0,0.00021759,2]
[392871548,1762096232996,-62484.91298492,0.0002176,2]
[392871549,1762096233006,-153.02295141,0.00021768,2]
[392871550,1762096233016,-500.0,0.00021772,2]
[392871551,1762096233025,-353.70596222,0.00021789,2]
[392871552,1762096233034,-161.16610659,0.00021789,2]
[392871553,1762096233044,-644.01976194,0.00021789,2]
[392871554,1762096233054,-392.47580491,0.00021789,2]
[392871555,1762096233063,-478.48435898,0.00021789,2]
[392871556,1762096233072,-1068.14340464,0.00021789,2]
[392871557,1762096233081,-370.74089565,0.00021789,2]
[392871558,1762096233091,-500.0,0.00021789,2]
[392871559,1762096233101,-500.0,0.00021799,2]
[392871560,1762096233110,-153.02295141,0.000218,2]
[392871561,1762096233119,-190.7421231,0.000218,2]
[392871562,1762096233128,-299.5114505,0.000218,2]
[392871563,1762096233138,-153.0,0.000218,2]
[392871564,1762096233147,-500.0,0.00021873,2]
[392871565,1762096233156,-1185.29,0.0002189,3]
[392871566,1762096233165,-592.65,0.0002189,3]